Cogmind - Beta 15 @@@ ROGUE MODE // 2025.05.17 @ 05:40:57 // Winter2019/RPGLIKE Player: Toaster Result: Destroyed by P-70 Sage with High-powered Shock Rifle Performance ------------- Evolutions (6) 3000 Regions Visited (7) 1400 Robots Destroyed (116) 580 Value Destroyed (4689) 4689 Prototype IDs (21) 420 Alien Tech Used (0) 0 Bonus (670) 670 TOTAL SCORE: 10759 Bonus ------- High Alert Combat Kills 75 Follower Combat Kills 66 Registered with UFD 300 Met Optimus in HQ 500 Friendly Fire -271 Cogmind --------- Core Integrity 0/1800 Matter 350/350 Energy 283/530 System Corruption 3% Temperature Warm (199) Movement Walking (125) Location -4/Factory Parts ------- > --- POWER (3) -------- Deuterium Engine Light Deuterium Engine Neutrino Core > --- PROPULSION (3) --- Armored Leg Cargo Legs > --- UTILITY (4+2) ---- Experimental Sensor Array Improved Signal Interpreter Matter Filter (+) Cloaking Device (+) Graphene Brace Long-range Tractor Beam > --- WEAPON (5) ------- Heavy Disruptor Cannon Magnetic Acceleration Cannon Magnetic Acceleration Cannon Enhanced Gauss Cannon > --- INVENTORY (1) ---- Stasis Canceller Peak State ------------ > --- POWER ------------ Deuterium Engine Light Deuterium Engine Neutrino Core > --- PROPULSION ------- Armored Leg Cargo Legs > --- UTILITY ---------- Experimental Sensor Array Improved Signal Interpreter Matter Filter Cloaking Device Graphene Brace Long-range Tractor Beam > --- WEAPON ----------- Heavy Disruptor Cannon Magnetic Acceleration Cannon Magnetic Acceleration Cannon Enhanced Gauss Cannon > --- INVENTORY -------- Stasis Canceller [Rating: 97] Favorites ----------- Power Improved Ion Engine Engine Improved Ion Engine Power Core Neutrino Core Propulsion Cargo Legs Leg Cargo Legs Hover Unit Hover Unit Utility Experimental Sensor Array Device Experimental Sensor Array Processor Improved Signal Interpreter Protection Scrap Shield Weapon Advanced Beam Cannon Energy Cannon Advanced Beam Cannon Ballistic Gun Heavy Battle Rifle Ballistic Cannon Magnetic Acceleration Cannon Special Weapon Junk Cannon Build | -11 -10 -10 -9 -9 -6 -5 -4 ------- Run | Yrd Mat Sub Rec Scr Fac Fac Fac Slots Evolved 11 | 2 2 . 2 1 1 1 2 Power 2 | . . . 1 . . . 1 Propulsion 2 | 1 . . . . 1 . . Utility 3 | . 1 . . 1 . 1 . Weapon 4 | 1 1 . 1 . . . 1 Parts Attached 50 | 5 16 3 3 5 11 4 3 Power 9 | 1 3 . 2 . 2 . 1 Engine 8 | 1 3 . 2 . 2 . . Core 1 | . . . . . . . 1 Reactor . | . . . . . . . . Propulsion 8 | 2 4 1 . . 1 . . Treads . | . . . . . . . . Leg 6 | 2 2 1 . . 1 . . Wheel . | . . . . . . . . Hover 2 | . 2 . . . . . . Flight . | . . . . . . . . Utility 16 | . 3 1 . 3 5 3 1 Device 9 | . 2 . . 1 4 1 1 Storage . | . . . . . . . . Processor 3 | . 1 . . . . 2 . Hackware . | . . . . . . . . Protection 4 | . . 1 . 2 1 . . Artifact . | . . . . . . . . Weapon 17 | 2 6 1 1 2 3 1 1 Energy Gun . | . . . . . . . . Energy Cannon 5 | . 4 . . . . . 1 Ballistic Gun 4 | 2 1 1 . . . . . Ballistic Cannon 7 | . 1 . 1 1 3 1 . Launcher . | . . . . . . . . Special Weapon 1 | . . . . 1 . . . Impact Weapon . | . . . . . . . . Slashing Weapon . | . . . . . . . . Piercing Weapon . | . . . . . . . . Special Melee Weapon . | . . . . . . . . Unidentified Prototypes 2 | . 1 . . 1 . . . Parts Lost . | . . . . . . . . Power . | . . . . . . . . Propulsion . | . . . . . . . . Utility . | . . . . . . . . Weapon . | . . . . . . . . Highest Loss Streak . | . . . . . . . . To Critical Strikes . | . . . . . . . . Average Backups . | . . . . . . . . Power . | . . . . . . . . Propulsion . | . . . . . . . . Utility . | . . . . . . . . Weapon . | . . . . . . . . Tool/Special . | . . . . . . . . Unused Backups 3 | . . 1 . 1 . . 1 Power . | . . . . . . . . Propulsion . | . . . . . . . . Utility 1 | . . . . . . . 1 Weapon 2 | . . 1 . 1 . . . Tool/Special . | . . . . . . . . Average Slot Usage (%) 75 | . 93 63 63 67 77 87 89 Engine 13 | . 14 10 10 15 14 13 12 Leg 11 | . 28 9 8 7 8 13 12 Device 9 | . 5 2 . 2 15 25 30 Processor 2 | . 7 2 . . . 5 6 Protection 5 | . . 7 8 7 7 2 . Energy Cannon 11 | . 23 20 17 13 . . 3 Ballistic Gun 5 | . 10 10 8 7 1 . . Ballistic Cannon 12 | . . . 8 9 27 26 20 Peak Build Rating 97 | 5 16 31 38 55 70 82 97 Average Rating 46 | 3 10 30 35 43 62 78 88 On Entrance 36 | . 5 13 31 38 55 70 80 Naked Turns . | . . . . . . . . Heaviest Build 76 | 7 22 35 51 53 66 69 76 Greatest Support 81 | 25 31 65 65 65 81 81 81 Greatest Overweight (x) 2 | . 2 1 . . . . . Average Overweight (x) . | . . . . . . . . Largest Inventory Capacity 1 | 1 1 1 1 1 1 1 1 Average Capacity . | . 1 1 1 1 1 1 1 Most Carried 1 | . 1 1 1 1 1 1 1 Average Carried . | . . . . . . . . Final Capacity 1 | 1 1 1 1 1 1 1 1 Final Carried 1 | . 1 1 1 1 1 . 1 Class Distribution -------------------- 34% | Gunner 22% | Tank 16% | Commander-Gunner 13% | Skirmisher 8% | Mutant 3% | Commander-Skirmisher Dominant Class ---------------- Mutant | -10/Materials Gunner | -10/Subcaves Gunner | -9/Recycling Commander-Gunner | -9/Scraptown Tank | -6/Factory Skirmisher | -5/Factory Skirmisher | -4/Factory Resources | -11 -10 -10 -9 -9 -6 -5 -4 ----------- Run | Yrd Mat Sub Rec Scr Fac Fac Fac Matter Collected 2986 | 250 260 230 163 175 706 932 270 Remotely 1202 | . . . . . . 932 270 Salvage Created 3023 | . 557 761 247 78 665 459 256 Parts 212 | . 39 47 8 10 31 56 21 Haulers Intercepted . | . . . . . . . . Recyclers Shooed 1 | . . . . . 1 . . Parts Field Recycled . | . . . . . . . . Retrieved Matter . | . . . . . . . . Parts Self-Destructed 20 | . . 20 . . . . . Prevented . | . . . . . . . . Kills | -11 -10 -10 -9 -9 -6 -5 -4 ------- Run | Yrd Mat Sub Rec Scr Fac Fac Fac Combat Hostiles Destroyed 91 | . 15 18 6 5 15 26 6 Guns 16 | . 6 7 1 2 . . . Cannons 71 | . 9 10 5 3 15 23 6 AOE 2 | . . . . . . 2 . Classes Destroyed 20 | . 6 5 1 4 2 2 . Worker 3 | . 1 . . . 2 . . Builder 4 | . . . . . 1 2 1 Recycler 2 | . 1 . . . 1 . . Mechanic 1 | . . . . . . 1 . Operator 2 | . 1 . . . . 1 . Turret 2 | . . 2 . . . . . Watcher 10 | . 3 . . . 2 4 1 Swarmer 20 | . 6 4 . . 3 7 . Grunt 25 | . 9 1 2 . 2 11 . Brawler 1 | . . . . . 1 . . Sentry 13 | . . 1 3 . 5 1 3 Hunter 5 | . . . . . . 2 3 Programmer 10 | . . . 1 . 4 5 . Artisan 2 | . . 2 . . . . . Subdweller 12 | . . 12 . . . . . Federalist 2 | . . . . 2 . . . Guru 2 | . . . . 2 . . . Scientist 2 | . . 1 . 1 . . . Scrapper 1 | . . . . 1 . . . Elite 1 | . . . . 1 . . . Best Kill Streak 8 | . 3 6 3 5 8 8 3 Combat Bots Only 7 | . 3 5 3 5 4 7 1 Max Kills in Single Turn 3 | . 2 2 1 2 2 3 1 Gunslinging . | . . . . . . . . Exploded 2 | . . . . . . 2 . Melee . | . . . . . . . . Uniques/NPCs Destroyed . | . . . . . . . . Combat | -11 -10 -10 -9 -9 -6 -5 -4 -------- Run | Yrd Mat Sub Rec Scr Fac Fac Fac Hostile Shots Fired 606 | . 92 82 20 16 152 125 119 Missed 210 | . 24 29 5 6 70 35 41 Hits 396 | . 68 53 15 10 82 90 78 Projectile 396 | . 68 53 15 10 82 90 78 AOE 1 | . . . . . 1 . . Critical Strikes 9 | . 2 . . . 1 3 3 Actively Blocked 3 | . . . . . . . 3 Damage Taken 5379 | . 697 873 200 122 816 1519 1152 Core 3915 | . 570 546 127 64 558 1134 916 Absorbed by Shields 60 | . . . . 32 28 . . Redirected to Core 3204 | . 401 419 104 55 404 989 832 Ignored by Resistances 320 | . . . . . 74 109 137 Core Remaining (%) 67 | 100 . . . 80 55 36 . Volleys Fired 251 | . 52 76 10 7 37 48 21 Largest 4 | . 3 3 4 4 4 4 4 Hottest 245 | . 159 169 209 185 172 179 245 Shots Fired 792 | . 114 196 40 28 139 192 83 Gun 146 | . 60 63 10 7 6 . . Cannon 646 | . 54 133 30 21 133 192 83 Launcher . | . . . . . . . . Special . | . . . . . . . . Kinetic 558 | . 60 63 20 21 139 192 63 Thermal 214 | . 54 133 20 7 . . . Explosive . | . . . . . . . . Electromagnetic 20 | . . . . . . . 20 Robot Hit Streak 34 | . 8 34 8 7 9 19 25 Robot Miss Streak 6 | . 3 3 2 3 6 3 2 Penetration Max 1 | . . . . . . 1 . Secondary Targets . | . . . . . . . . Shots Hit Robots 482 | . 70 139 26 11 71 113 52 Core Hits 186 | . 31 42 7 9 31 45 21 Critical Kills 2 | . . 1 . . 1 . . Critical Parts Destroyed . | . . . . . . . . Critical Strikes 24 | . . 2 . . 6 14 2 Meltdown 1 | . . 1 . . . . . Destroy 2 | . . 1 . . 1 . . Blast 21 | . . . . . 5 14 2 Melee Attacks . | . . . . . . . . Impact . | . . . . . . . . Slashing . | . . . . . . . . Piercing . | . . . . . . . . Sneak Attacks . | . . . . . . . . Combat Hostiles . | . . . . . . . . Follow-up Attacks . | . . . . . . . . Damage Inflicted 13210 | . 1085 2771 637 357 2238 4438 1684 Guns 1636 | . 365 882 161 103 125 . . Cannons 10915 | . 713 1889 439 254 2113 3893 1614 Explosions 545 | . . . . . . 545 . Melee . | . . . . . . . . Ramming 114 | . 7 . 37 . . . 70 Kinetic 8991 | . 365 882 329 252 2238 3893 1032 Thermal 3248 | . 713 1889 271 105 . 270 . Explosive 275 | . . . . . . 275 . Electromagnetic 582 | . . . . . . . 582 Impact . | . . . . . . . . Slashing . | . . . . . . . . Piercing . | . . . . . . . . Highest Corruption 3 | . . . . 1 1 1 3 Average Corruption 1 | . . . . 1 1 1 1 Corruption Purged 2 | . . . . . 2 . . Corruption Blocked . | . . . . . . . . Effects 1 | . . . . . . 1 . Message Errors 1 | . . . . . . 1 . Overload Shots . | . . . . . . . . Overflow Damage 364 | . 12 25 . . 39 270 18 Projectiles 275 | . 12 25 . . 39 199 . Explosions 71 | . . . . . . 71 . Melee 18 | . . . . . . . 18 Knockbacks 50 | . . . 1 1 9 27 12 Impact 1 | . . . . . . . 1 Kinetic 46 | . . . 1 1 9 25 10 Secondary 3 | . . . . . . 2 1 Self-Inflicted Damage 98 | . 98 . . . . . . Shots 1 | . 1 . . . . . . Rammed . | . . . . . . . . Targets Rammed 10 | . 1 . 5 . . . 4 Kicked 10 | . 1 . 5 . . . 4 Crushed . | . . . . . . . . Highest Temperature 407 | . 276 63 407 120 179 188 229 Average Temperature 58 | . 79 21 136 50 52 40 83 Received Heat Transfer 917 | . 108 261 63 20 156 282 27 Effects 2 | . . . 2 . . . . Shutdowns 1 | . . . 1 . . . . Energy Bleed 1 | . . . 1 . . . . Siege Activations . | . . . . . . . . Martial Activations . | . . . . . . . . Shielding Activations . | . . . . . . . . Robots Disrupted 1 | . . . . . . . 1 Combat Hostiles 1 | . . . . . . . 1 Robots Corrupted . | . . . . . . . . Combat Hostiles . | . . . . . . . . Parts Fried 2 | . . . . . . . 2 Impact Corruptions 1 | . . . . . . . 1 Robots Melted 1 | . . 1 . . . . . Combat Hostiles 1 | . . 1 . . . . . Parts Melted 14 | . 2 11 . 1 . . . Heat Transferred 5503 | . 1295 3404 481 173 . 150 . Parts Sabotaged . | . . . . . . . . Parts Stolen . | . . . . . . . . Parts Stripped . | . . . . . . . . Power Chain Reactions . | . . . . . . . . Alert | -11 -10 -10 -9 -9 -6 -5 -4 ------- Run | Yrd Mat Sub Rec Scr Fac Fac Fac Maximum Alert Level 2 | . . . . . 2 2 2 Low Security (%) 56 | 100 100 . 100 . 35 12 38 Level 1 40 | . . . . . 61 81 60 Level 2 2 | . . . . . 2 5 1 Level 3 . | . . . . . . . . Level 4 . | . . . . . . . . Level 5 . | . . . . . . . . High Security . | . . . . . . . . Max Security . | . . . . . . . . Peak Influence 650 | . 177 . 180 . 410 650 403 Initial 312 | . . . . . . 174 312 Average 174 | . 58 . 51 . 233 296 236 Influence Increases 3422 | . 624 230 352 . 781 1062 373 Destroy 0b10 Robot/C 1520 | . 300 160 120 . 300 520 120 Destroy 0b10 Robot/NC 110 | . 30 . . . 30 40 10 Destroy Leader 360 | . 86 10 . . 114 98 52 Successful Hack 67 | . 26 . 4 . 21 16 . Select Force Hacks 270 | . 60 . 210 . . . . Disable Machine 390 | . 45 . 15 . 150 165 15 Anti-Garrison Action 150 | . . . . . . . 150 Destroy Structure 315 | . 17 . 3 . 91 178 26 Partial Spotted 15 | . 15 . . . . . . Lose Combat Pursuer 225 | . 45 60 . . 75 45 . Influence Decreases 3023 | . 479 375 211 141 425 780 612 Entered New Map 719 | . . 70 . 141 . 182 326 Time Decay 2291 | . 479 305 211 . 412 598 286 Lost Ally 13 | . . . . . 13 . . Squads Dispatched 26 | . 5 . . . 5 11 5 Investigation 5 | . 3 . . . 1 1 . Extermination 8 | . . . . . 4 3 1 Reinforcement 5 | . 2 . . . . 2 1 Assault 2 | . . . . . . . 2 Garrison 6 | . . . . . . 5 1 Intercept . | . . . . . . . . Searches Triggered . | . . . . . . . . Construction Impeded 1 | . . . . . . 1 . Haulers Reinforced . | . . . . . . . . Active Scanning Responses . | . . . . . . . . Cargo Convoy Interrupts . | . . . . . . . . Stealth | -11 -10 -10 -9 -9 -6 -5 -4 --------- Run | Yrd Mat Sub Rec Scr Fac Fac Fac Distress Signals 3 | . . . . . 3 . . Communications Jammed . | . . . . . . . . Distress Signals . | . . . . . . . . Times Spotted 126 | . 20 21 6 12 22 33 12 Peak Tracking Total 7 | . 3 4 3 5 5 7 4 Tactical Retreats 10 | . 3 2 . . 2 3 . Traps | -11 -10 -10 -9 -9 -6 -5 -4 ------- Run | Yrd Mat Sub Rec Scr Fac Fac Fac Traps Triggered 2 | . 1 . . . 1 . . Indirectly . | . . . . . . . . Trap Hack Attempts . | . . . . . . . . Triggered . | . . . . . . . . Disarmed . | . . . . . . . . Reprogrammed . | . . . . . . . . Reused . | . . . . . . . . Traps Extracted . | . . . . . . . . Installed . | . . . . . . . . Triggered . | . . . . . . . . Machines | -11 -10 -10 -9 -9 -6 -5 -4 ---------- Run | Yrd Mat Sub Rec Scr Fac Fac Fac Machines Disabled 32 | . 4 3 1 1 10 11 2 Max in Single Turn 4 | . 3 1 1 1 4 4 1 Garrison Access 1 | . . . . . . . 1 Machines Repaired . | . . . . . . . . Machines Dismantled . | . . . . . . . . Machines Sabotaged . | . . . . . . . . Overloaded Fab Kills . | . . . . . . . . Hacking | -11 -10 -10 -9 -9 -6 -5 -4 --------- Run | Yrd Mat Sub Rec Scr Fac Fac Fac Machines Accessed 37 | . 7 2 12 . 6 9 1 Terminals 25 | . 5 . 4 . 6 9 1 Fabricators . | . . . . . . . . Repair Stations . | . . . . . . . . Recycling Units 10 | . 2 . 8 . . . . Scanalyzers . | . . . . . . . . Garrison Access . | . . . . . . . . Total Hacks 76 | . 15 6 26 . 13 14 2 Successful 49 | . 10 6 20 . 6 7 . Failed 27 | . 5 . 6 . 7 7 2 Catastrophic 4 | . . . . . 2 1 1 Database Lockouts . | . . . . . . . . Manual 45 | . 11 . 15 . 6 11 2 Terminals 49 | . 12 . 8 . 13 14 2 Fabricators . | . . . . . . . . Repair Stations . | . . . . . . . . Recycling Units 21 | . 3 . 18 . . . . Scanalyzers . | . . . . . . . . Garrison Access . | . . . . . . . . Terminal Hacks 15 | . 3 6 1 . 3 2 . Record 9 | . 2 5 1 . . 1 . Robot Analysis 1 | . 1 . . . . . . Prototype ID Bank 1 | . . . . . 1 . . Locate Traps 2 | . . . . . 1 1 . Recall Reinforcements 1 | . . . . . 1 . . Proto ID Catalog 1 | . . 1 . . . . . Fabricator Hacks . | . . . . . . . . Repair Station Hacks . | . . . . . . . . Recycling Unit Hacks 9 | . . . 9 . . . . Report Inventory 7 | . . . 7 . . . . Retrieve Components 2 | . . . 2 . . . . Scanalyzer . | . . . . . . . . Garrison Access Hacks . | . . . . . . . . Unauthorized Hacks 25 | . 7 . 10 . 3 5 . Terminals 16 | . 5 . 3 . 3 5 . Botnet 16 | . 5 . 3 . 3 5 . Fabricators . | . . . . . . . . Repair Stations . | . . . . . . . . Recycling Units 9 | . 2 . 7 . . . . Tunnel 9 | . 2 . 7 . . . . Scanalyzers . | . . . . . . . . Garrison Access . | . . . . . . . . Data Cores Recovered 1 | . . . . . . 1 . Used 1 | . . . . . . 1 . Hacking Detections 18 | . 2 . 4 . 4 7 1 Full Trace Events 1 | . . . . . 1 . . Feedback Events . | . . . . . . . . Feedback Blocked . | . . . . . . . . Robot Schematics Acquired . | . . . . . . . . Robots Built . | . . . . . . . . Authchips . | . . . . . . . . Time . | . . . . . . . . Total Robot Build Rating . | . . . . . . . . Part Schematics Acquired . | . . . . . . . . Parts Built . | . . . . . . . . Authchips . | . . . . . . . . Time . | . . . . . . . . Total Part Build Rating . | . . . . . . . . Parts Repaired . | . . . . . . . . Time . | . . . . . . . . Parts Recycled . | . . . . . . . . Recycled Matter . | . . . . . . . . Retrieved Matter . | . . . . . . . . Retrieved Components 6 | . . . 6 . . . . Parts Scanalyzed . | . . . . . . . . Part Schematics Acquired . | . . . . . . . . Parts Damaged . | . . . . . . . . Bothacking | -11 -10 -10 -9 -9 -6 -5 -4 ------------ Run | Yrd Mat Sub Rec Scr Fac Fac Fac Used RIF Installer . | . . . . . . . . Robots Hacked . | . . . . . . . . Non-combat . | . . . . . . . . Combat . | . . . . . . . . Robot Hacks Applied . | . . . . . . . . Relay Couplers Released 1 | . . . . . . . 1 Machine Destruction 1 | . . . . . . . 1 Fabnet Peak Effective % . | . . . . . . . . Robots Rewired 8 | . . . 8 . . . . Allies Hacked . | . . . . . . . . Hacks Repelled . | . . . . . . . . Allies | -11 -10 -10 -9 -9 -6 -5 -4 -------- Run | Yrd Mat Sub Rec Scr Fac Fac Fac Total Allies 8 | . . . 8 . . . . Largest Group 8 | . . . 8 8 4 . . Highest-Rated Group 133 | . . . 133 133 78 . . Highest-Rated Ally 34 | . . . 34 34 27 . . Total Orders . | . . . . . . . . Ally Attacks 16 | . . . . 14 2 . . Total Damage 497 | . . . . 454 43 . . Kills 3 | . . . . 3 . . . Allies Corrupted . | . . . . . . . . Allies Melted 1 | . . . . 1 . . . Intel | -11 -10 -10 -9 -9 -6 -5 -4 ------- Run | Yrd Mat Sub Rec Scr Fac Fac Fac Active Infowar (turns) 5856 | . . . . 879 2443 1909 625 Sensors 4636 | . . . . 879 1288 1844 625 IFF 21 | . . . . . 21 . . Cloaking 3767 | . . . . . 1233 1909 625 Robot Analysis Total 1 | . 1 . . . . . . Derelict Logs Recovered 4 | . . 3 . 1 . . . Drone Launches . | . . . . . . . . Drone Recoveries . | . . . . . . . . Exploration | -11 -10 -10 -9 -9 -6 -5 -4 ------------- Run | Yrd Mat Sub Rec Scr Fac Fac Fac Turns Passed 13105 | 58 1556 2316 1850 2340 2451 1909 625 Spaces Moved 9004 | 45 1088 1603 1293 1764 1630 1236 345 Core 21 | 14 4 3 . . . . . Treads . | . . . . . . . . Legs 8813 | 31 1003 1511 1293 1764 1630 1236 345 Wheels . | . . . . . . . . Hover 170 | . 81 89 . . . . . Flight . | . . . . . . . . Fastest Speed 50 | 50 56 56 130 130 125 125 125 Average Speed 126 | 98 115 125 130 130 128 125 125 Slowest Speed 190 | 120 190 130 130 130 130 125 125 Overloaded Moves . | . . . . . . . . Propulsion Burnouts . | . . . . . . . . Robots Hopped . | . . . . . . . . Potential Cave-ins . | . . . . . . . . Cave-ins Triggered . | . . . . . . . . Exploration Rate (%) 49 | 4 80 63 99 84 32 26 8 Regions Visited 7 Branch Regions 3 Pre-discovered Areas 11 | . 2 1 7 1 . . . Known Exits Taken 1 | . . . . . . 1 . Unknown Exits Taken 6 | 1 1 1 1 1 1 . . Scrap Searched 17 | . . 13 . 4 . . . Spaces Dug . | . . . . . . . . Terrain Destroyed 230 | . 16 . 3 9 93 99 10 Melee . | . . . . . . . . Projectile 90 | . . . 3 9 33 35 10 AOE 140 | . 16 . . . 60 64 . Terrain Rammed . | . . . . . . . . Walls Destroyed . | . . . . . . . . Machines Disabled . | . . . . . . . . Actions | -11 -10 -10 -9 -9 -6 -5 -4 --------- Run | Yrd Mat Sub Rec Scr Fac Fac Fac Total 10196 | 56 1293 1753 1435 1794 1898 1480 487 Wait 639 | 7 94 17 62 6 192 162 99 Move 8997 | 44 1087 1602 1292 1763 1629 1235 345 Hop . | . . . . . . . . Pick Up 7 | . 1 2 1 2 . . 1 Fast Attach 53 | 5 15 4 3 5 14 4 3 Attach 6 | . 1 . 1 2 . 2 . Detach 17 | . 7 2 . 2 2 2 2 Swap 1 | . 1 . . . . . . Drop 40 | . 12 7 2 5 11 2 1 Fire 251 | . 52 76 10 7 37 48 21 Melee . | . . . . . . . . Ram . | . . . . . . . . Kick 10 | . 1 . 5 . . . 4 Crush . | . . . . . . . . Escape Stasis 5 | . . . . . 5 . . Rewire 53 | . . . 53 . . . . Trap . | . . . . . . . . Miscellaneous 117 | . 22 43 6 2 8 25 11 Route ------- -11/Scrapyard -10/Materials (discovered 5 exits: [*Mat x3] / [*Min] / *Sub) -10/Subcaves (discovered 3 exits: [*Mat x2] / *Rec) -9/Recycling (discovered 2 exits: [*Fac] / *Scr) -9/Scraptown -6/Factory (discovered 2 exits: *Fac x2) -5/Factory -4/Factory History --------- Turn | Location | Event 3 | -11/Scrapyard | Upgraded with Propulsion slot (x1) 3 | -11/Scrapyard | Upgraded with Weapon slot (x1) 24 | -11/Scrapyard | Discovered new exit (range 15) 59 | -11/Scrapyard | Entered Materials 224 | -10/Materials | Discovered new exit (range 8) 225 | -10/Materials | Core integrity fell below 50% 307 | -10/Materials | Build established: Mutant 454 | -10/Materials | Discovered new exit (range 16) 708 | -10/Materials | Discovered new exit (range 9) 882 | -10/Materials | Discovered new exit (range 9) 964 | -10/Materials | Discovered new exit (range 11) 1034 | -10/Materials | Reached level 2 1055 | -10/Materials | Upgraded with Utility slot (x1) 1060 | -10/Materials | Upgraded with Weapon slot (x1) 1393 | -10/Materials | Build established: Gunner 1615 | -10/Materials | Entered Subcaves 1616 | -10/Subcaves | Approached by a straggling Scientist 1617 | -10/Subcaves | Reached level 3 1671 | -10/Subcaves | Visited 4L-MR0's lab 1672 | -10/Subcaves | Learned 2 Materials zone layouts 1684 | -10/Subcaves | Found Cargo Legs 1686 | -10/Subcaves | Attached Cargo Legs, gained temporary slots: Utility x2 1762 | -10/Subcaves | Visited Clippyterm 1766 | -10/Subcaves | Learned Factory emergency access door positions 1766 | -10/Subcaves | Learned Factory stockpile data 1915 | -10/Subcaves | Discovered new exit (range 10) 2060 | -10/Subcaves | Ambushed by angry Subdweller bent on revenge 2252 | -10/Subcaves | A swath of the cavern ceiling suddenly collapsed 2516 | -10/Subcaves | Discovered new exit (range 10) 2679 | -10/Subcaves | Shifting Twisted Machinery released Battle Rifle 2940 | -10/Subcaves | Discovered new exit (range 5) 2977 | -10/Subcaves | Disturbed a concealed Subdweller 2993 | -10/Subcaves | Disturbed a concealed Subdweller 3000 | -10/Subcaves | Disturbed a concealed Subdweller 3099 | -10/Subcaves | Disturbed a concealed Subdweller 3189 | -10/Subcaves | Disturbed a concealed Subdweller 3433 | -10/Subcaves | Shifting Twisted Machinery released Spk. Treads 3931 | -10/Subcaves | Entered Recycling 3933 | -9/Recycling | Reached level 4 3935 | -9/Recycling | Upgraded with Weapon slot (x1) 4745 | -9/Recycling | Scanned before Scraplab entrance 4765 | -9/Recycling | Entered Scraplab 4875 | -9/Recycling | Discovered new exit (range 7) 5120 | -9/Recycling | Reached level 5 5458 | -9/Recycling | Upgraded with Power slot (x1) 5752 | -9/Recycling | Discovered new exit (range 4) 5781 | -9/Recycling | Entered Scraptown 5781 | -9/Scraptown | Accompanied by 8 allies 5783 | -9/Scraptown | Reached level 6 5889 | -9/Scraptown | Build established: Commander-Gunner 6142 | -9/Scraptown | Scanned Subdweller tech in exchange for log data 6147 | -9/Scraptown | Learned location of Zion (-6) 6201 | -9/Scraptown | Visited Comm Corps 6285 | -9/Scraptown | Visited Shadow of the Wyrm 6307 | -9/Scraptown | Visited UFD Registry 6307 | -9/Scraptown | Registered with UFD as "Hellcase" 6334 | -9/Scraptown | Visited Assassins FH 6386 | -9/Scraptown | Visited Cyclists 6416 | -9/Scraptown | Visited The Evicted 6430 | -9/Scraptown | Visited Cave Peace 6638 | -9/Scraptown | Visited DA-N13 Charitable Foundation 6669 | -9/Scraptown | Found DCF Scrap (28 items) 6792 | -9/Scraptown | Delivered Scrap Shield to a Scientist 6895 | -9/Scraptown | Visited Junk Cannon Lab 6911 | -9/Scraptown | Found Prototype Special Weapon 6911 | -9/Scraptown | Identified Junk Cannon 6967 | -9/Scraptown | Visited Scrapoid Pod Storage 6992 | -9/Scraptown | Visited Abandonware Association 7034 | -9/Scraptown | Visited Scrapoid Research Area 7134 | -9/Scraptown | Discovered new exit (range 5) 7231 | -9/Scraptown | Visited Infowarlord's Domain 7240 | -9/Scraptown | Found Exp. Sensor Array 7341 | -9/Scraptown | Visited Curators Association 7362 | -9/Scraptown | Visited Junk Repository 7381 | -9/Scraptown | Upgraded with Utility slot (x1) 7813 | -9/Scraptown | Visited LU-1G1's Boring Crew 7968 | -9/Scraptown | Met Optimus 7968 | -9/Scraptown | Accepted into 0bPrime 8033 | -9/Scraptown | Build established: Commander-Skirmisher 8055 | -9/Scraptown | Civil war broke out across Scraptown 8121 | -9/Scraptown | Entered Factory 8121 | -6/Factory | Accompanied by 4 allies 8122 | -6/Factory | Lost 9 allies 8123 | -6/Factory | Reached level 7 8440 | -6/Factory | Build established: Commander-Tank 8493 | -6/Factory | Lost 3 allies 8770 | -6/Factory | Build established: Tank 8918 | -6/Factory | Core integrity fell below 50% 8923 | -6/Factory | Reached level 8 9388 | -6/Factory | Discovered new exit (range 20) 9810 | -6/Factory | Reached level 9 9813 | -6/Factory | Upgraded with Propulsion slot (x1) 10152 | -6/Factory | Discovered new exit (range 5) 10572 | -6/Factory | Entered another Factory area 10574 | -5/Factory | Reached level 10 10606 | -5/Factory | Upgraded with Utility slot (x1) 10767 | -5/Factory | Noticed UFD Elites at a Recycling Unit 10778 | -5/Factory | Garrison activated, responded to threat 10809 | -5/Factory | Core integrity fell below 50% 10817 | -5/Factory | Lost 3 allies 10849 | -5/Factory | Destroyed 7 combat bots 10919 | -5/Factory | Core integrity fell below 20% 11092 | -5/Factory | Reached level 11 11666 | -5/Factory | Build established: Skirmisher 12093 | -5/Factory | Reached level 12 12377 | -5/Factory | Discovered new exit (range 17) 12380 | -5/Factory | Garrison activated, responded to threat 12480 | -5/Factory | Identified exit to Factory 12481 | -5/Factory | Entered another Factory area 12482 | -4/Factory | Core integrity fell below 50% 12483 | -4/Factory | Reached level 13 12697 | -4/Factory | Upgraded with Weapon slot (x1) 12959 | -4/Factory | Reached level 14 12974 | -4/Factory | Upgraded with Power slot (x1) 13085 | -4/Factory | Core integrity fell below 20% 13106 | -4/Factory | Destroyed by P-70 Sage with High-powered Shock Rifle Last Messages --------------- 13097_ K-01 Serf collects debris. 13097_ H-77 Assassin shuts down. 13097_ H-77 Assassin knocked back. 13097_ P-70 Sage knocked back. 13098_ Acquired 7 matter. 13098_ Acquired 5 matter. 13101_ P-70 Sage knocked back. 13101_ K-01 Serf latches onto H-77 Assassin. 13101_ K-01 Serf pushes H-77 Assassin. 13102_ Acquired 5 matter. 13102_ Acquired 3 matter. 13102_ Acquired 1 matter. 13102_ Acquired 2 matter. 13102_ K-01 Serf pushes H-77 Assassin. 13104_ P-70 Sage knocked back. 13105_ Acquired 3 matter. 13105_ Acquired 9 matter. 13105_ K-01 Serf pushes H-77 Assassin. 13105_ P-70 Sage resets P-70 Sage, system corruption cleaned. 13106_ K-01 Serf pushes H-77 Assassin. Map ----- +----------------------------------------------------+ | ???????????????????????????????????? | | ???????????????????????????????????? | | ???????????????????????????????????? | | ???????????????????????????????????? | | ???????????????????????????????????? | | ???????????????????????????????????? | | ???????????????????????????????????? | | ?????????????????????##????????????? | | ????????????????????? ????????????? | | ?????????????????????# ????????????? | | ?????????????????????# #####???????? | | ?????????????????????# +???????? | | ?????????????????????# #???????? | | ?????????????????????# #???????? | | ?????????????????????#h #???????? | | ?????????????????????#k #???????? | | ?????????????????????# +???????? | | ?????????????????????+ #???????? | | ??????????????????? ?# #???????? | | ??????????????????? ?# #???????? | | ??????????????######## #???????? | | ??????????????# ! +???????? | | ?????????????## =%[ #???????? | | ?????????????#; * % #???????? | | ??????????????# p %=! #???????? | | ??????????????# p %!@ #???????? | | ??????????????# ##;%%###???????? | | ??????????????# ####%#?????????? | | ??????????????# ## #[#?????????? | | ??????????????# ###"[##????????? | | ??????????????# ##"#%=########?? | | ?????????###### # =%* #?? | | ?????????+ # /!* "" #?? | | ?????????# ^ # %! T" #?? | | ###+###### ^ " # " " "" #?? | | ! G" # """ #?? | | %" # "" #?? | | [=! + #?? | | = # """ " #?? | | ! # """"" #?? | | ################ ## """ #?? | | ?????????# # ## #?? | | ########## # ## #?? | | # "" # ###############?? | | # "" # #????! ! ??????? | | # """ # #???? ??????? | | ! # """ # #????? ?####### | | # """ + #????? ?# !! # | | # # #######+#?# ! # | | # # #?# # | +----------------------------------------------------+ Best States ------------- Heat Dissipation 85 Energy Generation 37 Energy Capacity 530 Matter Stores 350 Matter Capacity 350 Sight Range 20 Robot Scan Range 24 Terrain Scan Density 10 Cloak Strength 2 Corruption Containment 8 Armor Coverage 800 Resistance: KI 10 Resistance: TH 5 Resistance: EX 5 Evasion (%) 55 Targeting Accuracy 5 Matter Filtering 30 Item Schematics ----------------- None Robot Schematics ------------------ None Fabricated ------------ Nothing Repaired ---------- Nothing Alien Tech Used ----------------- None Achievements -------------- I Spy Challenges ------------ None RPGLIKE | -11 -10 -10 -9 -9 -6 -5 -4 --------- Run | Yrd Mat Sub Rec Scr Fac Fac Fac Levels Raised 13 | . 1 1 2 1 3 3 2 XP Earned 23975 | 3000 2485 1850 2725 933 4335 5463 3184 XP Spent 22135 | 1350 2920 1300 2280 2400 3910 5335 2640 Upgrades 66 | 4 7 2 7 5 18 19 4 Power Slot 2 | . . . 1 . . . 1 Propulsion Slot 2 | 1 . . . . 1 . . Utility Slot 3 | . 1 . . 1 . 1 . Weapon Slot 4 | 1 1 . 1 . . . 1 Core Integrity 24 | . . . . . 12 12 . Heat Dissipation 10 | . 2 . 4 . . 2 2 Matter Storage 1 | . . . 1 . . . . Mass Support 2 | 1 . 1 . . . . . Inventory Capacity 1 | 1 . . . . . . . Sight Range 4 | . . . . 4 . . . Sensor Range 2 | . . . . . . 2 . Ranged Accuracy 7 | . 3 1 . . 2 1 . KI Resistance % 2 | . . . . . 1 1 . TH Resistance % 1 | . . . . . 1 . . EX Resistance % 1 | . . . . . 1 . . Protomatter Created 1179 | . 162 253 48 181 48 336 151 Integrity Restored 2228 | . 486 638 144 45 144 516 255 Core 2104 | . 486 514 144 45 144 516 255 Parts 124 | . . 124 . . . . . Protomatter Decayed 1170 | . . 129 . 916 . 59 66 Game ------ Seed ChainHeavyAmplifier Manual? 0 Play Time 02:08:27 Cumulative 98.1 hours Start 2025.05.17 @ 02:30:35 End 2025.05.17 @ 05:40:57 Sessions 1 Manual Loads 0 Difficulty Rogue Special Mode Winter2019/RPGLIKE Game No. 45 Rogue 41 Adventurer 4 Explorer 0 Win Type - Total 1 Types 1/0/0/0/0/0/0/0/0/0 Lore% 53 Gallery% 42 Achievement% 46 Wizard Run 0 Options --------- Layout 0 ASCII 0 Keyboard 0 Movement Arrows Keybinds 0 Fullscreen 2 Font 32/SmallcapsGlow Map View 88x55 Zoom Use 0% Tactical HUD 1 Map Filters NONE Filters NONE Steam 1 RUN: b1526188-8d94-422d-b081-cd94488d4235